fUSD/lending_fUSD_20260601
["ID","MTS","AMOUNT","RATE_DAILY","PERIOD"]
[423709189,1780324242000,-166.66,0.00013921,2]
[423709187,1780324242000,-150.0,0.00013916,2]
[423709197,1780324242000,-150.0,0.00013966,2]
[423709188,1780324242000,-150.0,0.00013918,2]
[423709186,1780324242000,-150.0,0.00013904,2]
[423709185,1780324242000,-355.79,0.00013903,2]
[423709184,1780324242000,-2000.0,0.00013903,2]
[423709198,1780324242000,-150.0,0.00013971,2]
[423709196,1780324242000,-500.0,0.00013954,2]
[423709249,1780324243000,-2000.0,0.00014123,2]
[423709250,1780324243000,-2000.0,0.00014123,2]
[423709256,1780324243000,-2000.0,0.00014123,2]
[423709251,1780324243000,-1705.24,0.00014123,2]
[423709254,1780324243000,-2000.0,0.00014123,2]
[423709265,1780324243000,-2000.0,0.00014123,2]
[423709272,1780324243000,-1210.51,0.00014123,2]
[423709268,1780324243000,-2000.0,0.00014123,2]
[423709270,1780324243000,-2000.0,0.00014123,2]
[423709253,1780324243000,-2000.0,0.00014123,2]
[423709275,1780324243000,-150.0,0.0001413,2]
[423709258,1780324243000,-2000.0,0.00014123,2]
[423709276,1780324243000,-2000.0,0.0001414,2]
[423709274,1780324243000,-150.0,0.00014125,2]
[423709260,1780324243000,-2000.0,0.00014123,2]
[423709262,1780324243000,-2000.0,0.00014123,2]
[423709288,1780324243000,-500.0,0.00014228,2]
[423709278,1780324243000,-166.66,0.00014144,2]
[423709277,1780324243000,-150.0,0.00014141,2]
[423709243,1780324243000,-2000.0,0.00014123,2]
[423709279,1780324243000,-150.0,0.00014154,2]
[423709255,1780324243000,-2000.0,0.00014123,2]
[423709244,1780324243000,-2000.0,0.00014123,2]
[423709233,1780324243000,-2000.0,0.00014123,2]
[423709245,1780324243000,-2000.0,0.00014123,2]
[423709280,1780324243000,-150.0,0.00014157,2]
[423709226,1780324243000,-2000.0,0.00014123,2]
[423709227,1780324243000,-2000.0,0.00014123,2]
[423709225,1780324243000,-2000.0,0.00014123,2]
[423709228,1780324243000,-2000.0,0.00014123,2]
[423709238,1780324243000,-2000.0,0.00014123,2]
[423709239,1780324243000,-2000.0,0.00014123,2]
[423709240,1780324243000,-2000.0,0.00014123,2]
[423709229,1780324243000,-2000.0,0.00014123,2]
[423709230,1780324243000,-2000.0,0.00014123,2]
[423709232,1780324243000,-2000.0,0.00014123,2]
[423709231,1780324243000,-2000.0,0.00014123,2]
[423709234,1780324243000,-2000.0,0.00014123,2]
[423709237,1780324243000,-2000.0,0.00014123,2]
[423709236,1780324243000,-2000.0,0.00014123,2]
[423709235,1780324243000,-2000.0,0.00014123,2]
[423709241,1780324243000,-2000.0,0.00014123,2]
[423709246,1780324243000,-2000.0,0.00014123,2]
[423709242,1780324243000,-2000.0,0.00014123,2]
[423709248,1780324243000,-2000.0,0.00014123,2]
[423709252,1780324243000,-2000.0,0.00014123,2]
[423709247,1780324243000,-2000.0,0.00014123,2]
[423709281,1780324243000,-150.0,0.00014164,2]
[423709282,1780324243000,-150.0,0.00014173,2]
[423709313,1780324243000,-150.0,0.00014387,2]
[423709311,1780324243000,-166.66,0.00014367,2]
[423709321,1780324243000,-289.70611755,0.00014438,2]
[423709320,1780324243000,-150.0,0.00014428,2]
[423709324,1780324243000,-150.0,0.0001446,2]
[423709318,1780324243000,-150.0,0.00014412,2]
[423709322,1780324243000,-150.0,0.00014444,2]
[423709316,1780324243000,-150.0,0.00014404,2]
[423709317,1780324243000,-150.0,0.00014406,2]
[423709323,1780324243000,-150.0,0.00014455,2]
[423709312,1780324243000,-150.0,0.0001438,2]
[423709314,1780324243000,-150.0,0.00014387,2]
[423709319,1780324243000,-150.0,0.00014415,2]
[423709326,1780324243000,-150.0,0.00014487,2]
[423709325,1780324243000,-150.0,0.00014476,2]
[423709327,1780324243000,-150.0,0.00014487,2]
[423709328,1780324243000,-150.0,0.00014487,2]
[423709330,1780324243000,-150.0,0.00014492,2]
[423709329,1780324243000,-350.0,0.00014491,2]
[423709331,1780324243000,-466.01,0.00014497,2]
[423709332,1780324243000,-2175.25,0.00014497,2]
[423709285,1780324243000,-150.0,0.00014205,2]
[423709309,1780324243000,-150.0,0.00014358,2]
[423709310,1780324243000,-150.0,0.00014365,2]
[423709315,1780324243000,-150.0,0.00014396,2]
[423709304,1780324243000,-150.0,0.00014317,2]
[423709284,1780324243000,-150.0,0.00014201,2]
[423709287,1780324243000,-150.0,0.00014221,2]
[423709283,1780324243000,-150.0,0.00014189,2]
[423709286,1780324243000,-150.0,0.00014213,2]
[423709290,1780324243000,-150.0,0.00014237,2]
[423709300,1780324243000,-150.0,0.00014301,2]
[423709307,1780324243000,-150.0,0.00014344,2]
[423709289,1780324243000,-150.0,0.00014237,2]
[423709294,1780324243000,-150.0,0.00014253,2]
[423709298,1780324243000,-150.0,0.00014285,2]
[423709293,1780324243000,-48034.57606568,0.00014238,2]
[423709291,1780324243000,-150.0,0.00014237,2]
[423709333,1780324243000,-741.83,0.00014497,2]
[423709295,1780324243000,-150.0,0.00014261,2]
[423709303,1780324243000,-150.0,0.0001431,2]
[423709305,1780324243000,-150.0,0.0001432,2]
[423709308,1780324243000,-150.0,0.00014349,2]
[423709306,1780324243000,-150.0,0.00014333,2]
[423709302,1780324243000,-500.0,0.00014305,2]
[423709301,1780324243000,-71841.19838786,0.00014305,2]
[423709299,1780324243000,-17906.84635121,0.00014286,2]
[423709297,1780324243000,-150.0,0.00014273,2]
[423709292,1780324243000,-150.0,0.00014237,2]
[423709296,1780324243000,-150.0,0.00014269,2]
[423709376,1780324244000,-48034.57606568,0.00014768,2]
[423709375,1780324244000,-71841.19838786,0.00014768,2]
[423709373,1780324244000,-150.0,0.00014763,2]
[423709386,1780324244000,-326.2,0.00014812,2]
[423709371,1780324244000,-150.0,0.00014745,2]
[423709365,1780324244000,-150.0,0.00014699,2]
[423709369,1780324244000,-150.0,0.00014731,2]
[423709363,1780324244000,-150.0,0.00014687,2]
[423709370,1780324244000,-150.0,0.00014737,2]
[423709367,1780324244000,-150.0,0.00014701,2]
[423709377,1780324244000,-595.59137742,0.0001477,2]
[423709372,1780324244000,-150.0,0.00014747,2]
[423709368,1780324244000,-150.0,0.00014715,2]
[423709391,1780324244000,-354.74978975,0.0001484,2]
[423709380,1780324244000,-150.0,0.00014779,2]
[423709383,1780324244000,-150.0,0.00014795,2]
[423709379,1780324244000,-500.0,0.00014776,2]
[423709378,1780324244000,-150.0,0.00014772,2]
[423709382,1780324244000,-150.0,0.00014793,2]
[423709384,1780324244000,-150.0,0.00014811,2]
[423709385,1780324244000,-166.66,0.00014812,2]
[423709388,1780324244000,-150.0,0.00014827,2]
[423709387,1780324244000,-150.0,0.0001482,2]
[423709389,1780324244000,-150.0,0.00014836,2]
[423709390,1780324244000,-25000.0,0.00014838,3]
[423709374,1780324244000,-5000.0,0.00014768,2]
[423709381,1780324244000,-4609.0,0.00014783,2]
[423709366,1780324244000,-350.0,0.00014699,2]
[423709334,1780324244000,-1606.93,0.00014497,2]
[423709358,1780324244000,-150.0,0.00014652,2]
[423709337,1780324244000,-150.0,0.00014503,2]
[423709336,1780324244000,-500.0,0.00014502,2]
[423709335,1780324244000,-16865.34,0.00014497,2]
[423709338,1780324244000,-150.0,0.00014508,2]
[423709341,1780324244000,-150.0,0.0001454,2]
[423709339,1780324244000,-150.0,0.00014524,2]
[423709345,1780324244000,-150.0,0.0001457,2]
[423709347,1780324244000,-150.0,0.00014588,2]
[423709343,1780324244000,-150.0,0.00014556,2]
[423709349,1780324244000,-150.0,0.000146,2]
[423709342,1780324244000,-150.0,0.00014551,2]
[423709346,1780324244000,-150.0,0.00014572,2]
[423709364,1780324244000,-150.0,0.00014696,2]
[423709340,1780324244000,-150.0,0.00014537,2]
[423709350,1780324244000,-150.0,0.00014604,2]
[423709351,1780324244000,-500.0,0.00014609,2]
[423709353,1780324244000,-150.0,0.0001462,2]
[423709354,1780324244000,-150.0,0.00014629,2]
[423709355,1780324244000,-150.0,0.00014636,2]
[423709360,1780324244000,-150.0,0.00014667,2]
[423709361,1780324244000,-150.0,0.00014683,2]
[423709356,1780324244000,-350.0,0.00014645,2]
[423709362,1780324244000,-150.0,0.00014687,2]
[423709357,1780324244000,-150.0,0.00014648,2]
[423709352,1780324244000,-101458.0431379,0.0001461,2]
[423709359,1780324244000,-150.0,0.00014653,2]
[423709348,1780324244000,-166.66,0.00014589,2]
[423709392,1780324244000,-150.0,0.00014841,2]
[423709344,1780324244000,-150.0,0.00014558,2]
[423709396,1780324244000,-61195.5991268,0.0001485,2]
[423709427,1780324244000,-500.0,0.00014867,2]
[423709429,1780324244000,-500.0,0.00014867,2]
[423709428,1780324244000,-500.0,0.00014867,2]
[423709432,1780324244000,-500.0,0.00014867,2]
[423709425,1780324244000,-500.0,0.00014867,2]
[423709435,1780324244000,-500.0,0.00014867,2]
[423709430,1780324244000,-500.0,0.00014867,2]
[423709433,1780324244000,-500.0,0.00014867,2]
[423709434,1780324244000,-500.0,0.00014867,2]
[423709431,1780324244000,-500.0,0.00014867,2]
[423709445,1780324244000,-543.92349054,0.00014867,2]
[423709436,1780324244000,-500.0,0.00014867,2]
[423709426,1780324244000,-500.0,0.00014867,2]
[423709443,1780324244000,-500.0,0.00014867,2]
[423709440,1780324244000,-500.0,0.00014867,2]
[423709437,1780324244000,-500.0,0.00014867,2]
[423709441,1780324244000,-500.0,0.00014867,2]
[423709447,1780324244000,-735.28,0.00014867,2]
[423709439,1780324244000,-500.0,0.00014867,2]
[423709446,1780324244000,-327.92067223,0.00014867,2]
[423709442,1780324244000,-500.0,0.00014867,2]
[423709448,1780324244000,-735.28,0.00014867,2]
[423709450,1780324244000,-735.28,0.00014867,2]
[423709451,1780324244000,-735.28,0.00014867,2]
[423709452,1780324244000,-735.28,0.00014867,2]
[423709449,1780324244000,-735.28,0.00014867,2]
[423709438,1780324244000,-500.0,0.00014867,2]
[423709424,1780324244000,-500.0,0.00014867,2]
[423709444,1780324244000,-500.0,0.00014867,2]
[423709418,1780324244000,-500.0,0.00014867,2]
[423709421,1780324244000,-500.0,0.00014867,2]
[423709393,1780324244000,-150.0,0.00014843,2]
[423709395,1780324244000,-25000.0,0.00014847,3]
[423709397,1780324244000,-1328.0663066,0.00014854,2]
[423709398,1780324244000,-184.69892637,0.00014854,2]
[423709400,1780324244000,-672.6645624,0.00014858,2]
[423709401,1780324244000,-150.0,0.00014859,2]
[423709402,1780324244000,-25000.0,0.00014865,3]
[423709399,1780324244000,-25000.0,0.00014856,3]
[423709407,1780324244000,-590.12,0.00014867,2]
[423709404,1780324244000,-590.12,0.00014867,2]
[423709403,1780324244000,-590.12,0.00014867,2]
[423709405,1780324244000,-590.12,0.00014867,2]
[423709406,1780324244000,-590.12,0.00014867,2]
[423709394,1780324244000,-150.0,0.00014844,2]
[423709417,1780324244000,-500.0,0.00014867,2]
[423709414,1780324244000,-500.0,0.00014867,2]
[423709419,1780324244000,-500.0,0.00014867,2]
[423709420,1780324244000,-500.0,0.00014867,2]
[423709410,1780324244000,-590.12,0.00014867,2]
[423709416,1780324244000,-500.0,0.00014867,2]
[423709411,1780324244000,-500.0,0.00014867,2]
[423709415,1780324244000,-500.0,0.00014867,2]
[423709412,1780324244000,-500.0,0.00014867,2]
[423709422,1780324244000,-500.0,0.00014867,2]
[423709423,1780324244000,-500.0,0.00014867,2]
[423709408,1780324244000,-590.12,0.00014867,2]
[423709409,1780324244000,-590.12,0.00014867,2]
[423709413,1780324244000,-500.0,0.00014867,2]
[423709493,1780324245000,-500.0,0.00014867,2]
[423709490,1780324245000,-500.0,0.00014867,2]
[423709488,1780324245000,-500.0,0.00014867,2]
[423709492,1780324245000,-500.0,0.00014867,2]
[423709489,1780324245000,-500.0,0.00014867,2]
[423709485,1780324245000,-500.0,0.00014867,2]
[423709486,1780324245000,-500.0,0.00014867,2]
[423709484,1780324245000,-500.0,0.00014867,2]
[423709487,1780324245000,-500.0,0.00014867,2]
[423709495,1780324245000,-500.0,0.00014867,2]
[423709496,1780324245000,-500.0,0.00014867,2]
[423709494,1780324245000,-500.0,0.00014867,2]
[423709491,1780324245000,-500.0,0.00014867,2]
[423709497,1780324245000,-500.0,0.00014867,2]
[423709504,1780324245000,-500.0,0.00014867,2]
[423709500,1780324245000,-500.0,0.00014867,2]
[423709505,1780324245000,-500.0,0.00014867,2]
[423709501,1780324245000,-500.0,0.00014867,2]
[423709506,1780324245000,-500.0,0.00014867,2]
[423709502,1780324245000,-500.0,0.00014867,2]
[423709498,1780324245000,-500.0,0.00014867,2]
[423709503,1780324245000,-500.0,0.00014867,2]
[423709507,1780324245000,-500.0,0.00014867,2]
[423709509,1780324245000,-500.0,0.00014867,2]
[423709512,1780324245000,-500.0,0.00014867,2]
[423709510,1780324245000,-500.0,0.00014867,2]
[423709518,1780324245000,-500.0,0.00014867,2]
[423709499,1780324245000,-500.0,0.00014867,2]
[423709513,1780324245000,-500.0,0.00014867,2]
[423709455,1780324245000,-504.50119994,0.00014867,2]
[423709478,1780324245000,-500.0,0.00014867,2]
[423709453,1780324245000,-735.28,0.00014867,2]
[423709514,1780324245000,-500.0,0.00014867,2]
[423709457,1780324245000,-500.0,0.00014867,2]
[423709454,1780324245000,-735.28,0.00014867,2]
[423709456,1780324245000,-500.0,0.00014867,2]
[423709458,1780324245000,-500.0,0.00014867,2]
[423709470,1780324245000,-500.0,0.00014867,2]
[423709460,1780324245000,-500.0,0.00014867,2]
[423709471,1780324245000,-500.0,0.00014867,2]
[423709461,1780324245000,-500.0,0.00014867,2]
[423709459,1780324245000,-500.0,0.00014867,2]
[423709469,1780324245000,-500.0,0.00014867,2]
[423709464,1780324245000,-500.0,0.00014867,2]
[423709482,1780324245000,-500.0,0.00014867,2]
[423709463,1780324245000,-500.0,0.00014867,2]
[423709462,1780324245000,-500.0,0.00014867,2]
[423709466,1780324245000,-500.0,0.00014867,2]
[423709468,1780324245000,-500.0,0.00014867,2]
[423709467,1780324245000,-500.0,0.00014867,2]
[423709473,1780324245000,-500.0,0.00014867,2]
[423709472,1780324245000,-152.20324461,0.00014867,2]
[423709474,1780324245000,-500.0,0.00014867,2]
[423709483,1780324245000,-502.85146207,0.00014867,2]
[423709476,1780324245000,-500.0,0.00014867,2]
[423709475,1780324245000,-500.0,0.00014867,2]
[423709479,1780324245000,-500.0,0.00014867,2]
[423709481,1780324245000,-500.0,0.00014867,2]
[423709477,1780324245000,-500.0,0.00014867,2]
[423709465,1780324245000,-500.0,0.00014867,2]
[423709508,1780324245000,-500.0,0.00014867,2]
[423709480,1780324245000,-500.0,0.00014867,2]
[423709516,1780324245000,-500.0,0.00014867,2]
[423709557,1780324245000,-500.0,0.00014867,2]
[423709558,1780324245000,-500.0,0.00014867,2]
[423709548,1780324245000,-500.0,0.00014867,2]
[423709549,1780324245000,-500.0,0.00014867,2]
[423709552,1780324245000,-500.0,0.00014867,2]
[423709553,1780324245000,-500.0,0.00014867,2]
[423709554,1780324245000,-500.0,0.00014867,2]
[423709550,1780324245000,-500.0,0.00014867,2]
[423709551,1780324245000,-500.0,0.00014867,2]
[423709555,1780324245000,-500.0,0.00014867,2]
[423709556,1780324245000,-500.0,0.00014867,2]
[423709560,1780324245000,-500.0,0.00014867,2]
[423709561,1780324245000,-500.0,0.00014867,2]
[423709547,1780324245000,-500.0,0.00014867,2]
[423709572,1780324245000,-2395.52,0.00014867,2]
[423709571,1780324245000,-2395.52,0.00014867,2]
[423709564,1780324245000,-500.0,0.00014867,2]
[423709565,1780324245000,-500.0,0.00014867,2]
[423709563,1780324245000,-500.0,0.00014867,2]
[423709569,1780324245000,-2395.52,0.00014867,2]
[423709566,1780324245000,-500.0,0.00014867,2]
[423709568,1780324245000,-500.0,0.00014867,2]
[423709567,1780324245000,-500.0,0.00014867,2]
[423709576,1780324245000,-2395.52,0.00014867,2]
[423709574,1780324245000,-2395.52,0.00014867,2]
[423709578,1780324245000,-2395.52,0.00014867,2]
[423709577,1780324245000,-2395.52,0.00014867,2]
[423709511,1780324245000,-500.0,0.00014867,2]
[423709562,1780324245000,-500.0,0.00014867,2]
[423709546,1780324245000,-500.0,0.00014867,2]
[423709570,1780324245000,-2395.52,0.00014867,2]
[423709540,1780324245000,-500.0,0.00014867,2]
[423709515,1780324245000,-500.0,0.00014867,2]
[423709559,1780324245000,-500.0,0.00014867,2]
[423709517,1780324245000,-500.0,0.00014867,2]
[423709520,1780324245000,-500.0,0.00014867,2]
[423709531,1780324245000,-500.0,0.00014867,2]
[423709519,1780324245000,-500.0,0.00014867,2]
[423709526,1780324245000,-500.0,0.00014867,2]
[423709522,1780324245000,-500.0,0.00014867,2]
[423709527,1780324245000,-500.0,0.00014867,2]
[423709521,1780324245000,-500.0,0.00014867,2]
[423709525,1780324245000,-500.0,0.00014867,2]
[423709524,1780324245000,-500.0,0.00014867,2]
[423709529,1780324245000,-500.0,0.00014867,2]
[423709523,1780324245000,-500.0,0.00014867,2]
[423709530,1780324245000,-500.0,0.00014867,2]
[423709533,1780324245000,-500.0,0.00014867,2]
[423709528,1780324245000,-500.0,0.00014867,2]
[423709539,1780324245000,-500.0,0.00014867,2]
[423709538,1780324245000,-500.0,0.00014867,2]
[423709537,1780324245000,-500.0,0.00014867,2]
[423709545,1780324245000,-500.0,0.00014867,2]
[423709542,1780324245000,-500.0,0.00014867,2]
[423709534,1780324245000,-500.0,0.00014867,2]
[423709543,1780324245000,-500.0,0.00014867,2]
[423709532,1780324245000,-500.0,0.00014867,2]
[423709544,1780324245000,-500.0,0.00014867,2]
[423709541,1780324245000,-500.0,0.00014867,2]
[423709536,1780324245000,-500.0,0.00014867,2]
[423709535,1780324245000,-500.0,0.00014867,2]
[423709607,1780324246000,-17906.84635121,0.000149,2]
[423709611,1780324246000,-150.0,0.00014915,2]
[423709609,1780324246000,-941.9357865,0.00014904,2]
[423709610,1780324246000,-150.0,0.00014907,2]
[423709613,1780324246000,-1938.94,0.00014935,2]
[423709608,1780324246000,-150.0,0.00014903,2]
[423709612,1780324246000,-150.0,0.00014923,2]
[423709614,1780324246000,-150.0,0.00014935,2]
[423709617,1780324246000,-500.0,0.00014937,2]
[423709604,1780324246000,-2000.0,0.00014899,2]
[423709625,1780324246000,-2395.52,0.00014937,2]
[423709616,1780324246000,-500.0,0.00014937,2]
[423709618,1780324246000,-500.0,0.00014937,2]
[423709621,1780324246000,-500.0,0.00014937,2]
[423709620,1780324246000,-735.28,0.00014937,2]
[423709619,1780324246000,-735.28,0.00014937,2]
[423709624,1780324246000,-500.0,0.00014937,2]
[423709623,1780324246000,-500.0,0.00014937,2]
[423709622,1780324246000,-500.0,0.00014937,2]
[423709606,1780324246000,-25000.0,0.000149,3]
[423709627,1780324246000,-143548.4397052,0.00014938,2]
[423709615,1780324246000,-590.12,0.00014937,2]
[423709605,1780324246000,-160.01296222,0.000149,2]
[423709590,1780324246000,-552.911354,0.00014868,2]
[423709602,1780324246000,-150.0,0.00014891,2]
[423709628,1780324246000,-258007.2228134,0.00014938,2]
[423709584,1780324246000,-500.0,0.00014867,2]
[423709585,1780324246000,-500.0,0.00014867,2]
[423709586,1780324246000,-500.0,0.00014867,2]
[423709583,1780324246000,-382.83023992,0.00014867,2]
[423709579,1780324246000,-500.0,0.00014867,2]
[423709580,1780324246000,-500.0,0.00014867,2]
[423709581,1780324246000,-500.0,0.00014867,2]
[423709582,1780324246000,-500.0,0.00014867,2]
[423709587,1780324246000,-500.0,0.00014867,2]
[423709591,1780324246000,-552.911354,0.00014868,2]
[423709588,1780324246000,-1500000.0,0.00014868,2]
[423709589,1780324246000,-552.911354,0.00014868,2]
[423709593,1780324246000,-151.0,0.00014868,2]
[423709595,1780324246000,-151.0,0.00014868,2]
[423709592,1780324246000,-552.911354,0.00014868,2]
[423709594,1780324246000,-151.0,0.00014868,2]
[423709596,1780324246000,-161.212248,0.00014868,2]
[423709598,1780324246000,-150.0,0.00014875,2]
[423709597,1780324246000,-25000.0,0.00014874,3]
[423709603,1780324246000,-25000.0,0.00014891,3]
[423709599,1780324246000,-163.0,0.0001488,2]
[423709601,1780324246000,-150.0,0.0001489,2]
[423709600,1780324246000,-25000.0,0.00014882,3]
[423709626,1780324246000,-150.0,0.00014938,2]
[423709645,1780324246000,-164.030051,0.00014997,2]
[423709629,1780324246000,-150.0,0.00014938,2]
[423709653,1780324246000,-590.12,0.00014999,2]
[423709656,1780324246000,-500.0,0.00014999,2]
[423709657,1780324246000,-500.0,0.00014999,2]
[423709655,1780324246000,-500.0,0.00014999,2]
[423709659,1780324246000,-500.0,0.00014999,2]
[423709667,1780324246000,-735.28,0.00014999,2]
[423709671,1780324246000,-735.28,0.00014999,2]
[423709669,1780324246000,-735.28,0.00014999,2]
[423709630,1780324246000,-150.0,0.00014954,2]
[423709668,1780324246000,-735.28,0.00014999,2]
[423709652,1780324246000,-590.12,0.00014999,2]
[423709679,1780324246000,-500.0,0.00014999,2]
[423709666,1780324246000,-359.53775977,0.00014999,2]
[423709670,1780324246000,-735.28,0.00014999,2]
[423709677,1780324246000,-500.0,0.00014999,2]
[423709678,1780324246000,-500.0,0.00014999,2]
[423709674,1780324246000,-735.28,0.00014999,2]
[423709672,1780324246000,-735.28,0.00014999,2]
[423709680,1780324246000,-500.0,0.00014999,2]
[423709683,1780324246000,-500.0,0.00014999,2]
[423709684,1780324246000,-500.0,0.00014999,2]
[423709681,1780324246000,-500.0,0.00014999,2]
[423709676,1780324246000,-500.0,0.00014999,2]
[423709654,1780324246000,-397.53,0.00014999,2]
[423709675,1780324246000,-735.28,0.00014999,2]
[423709664,1780324246000,-500.0,0.00014999,2]
[423709665,1780324246000,-500.0,0.00014999,2]
[423709631,1780324246000,-1113.08,0.00014959,2]
[423709633,1780324246000,-500.0,0.00014967,2]
[423709636,1780324246000,-156.32339601,0.00014986,2]
[423709634,1780324246000,-186.72465597,0.00014968,2]
[423709635,1780324246000,-150.0,0.0001497,2]
[423709637,1780324246000,-271.09959181,0.00014986,2]
[423709642,1780324246000,-277.75158038,0.00014986,2]
[423709639,1780324246000,-210.33589891,0.00014986,2]
[423709644,1780324246000,-154.74719869,0.00014986,2]
[423709647,1780324246000,-590.12,0.00014999,2]
[423709632,1780324246000,-500.0,0.00014964,2]
[423709649,1780324246000,-590.12,0.00014999,2]
[423709641,1780324246000,-152.60770856,0.00014986,2]
[423709663,1780324246000,-500.0,0.00014999,2]
[423709662,1780324246000,-500.0,0.00014999,2]
[423709661,1780324246000,-500.0,0.00014999,2]
[423709651,1780324246000,-590.12,0.00014999,2]
[423709650,1780324246000,-590.12,0.00014999,2]
[423709648,1780324246000,-590.12,0.00014999,2]
[423709638,1780324246000,-151.40936633,0.00014986,2]
[423709646,1780324246000,-590.12,0.00014999,2]
[423709640,1780324246000,-185.25931037,0.00014986,2]
[423709643,1780324246000,-177.38153286,0.00014986,2]
[423709698,1780324247000,-2395.52,0.00014999,2]
[423709705,1780324247000,-781.56714637,0.00014999,2]
[423709700,1780324247000,-2395.52,0.00014999,2]
[423709702,1780324247000,-2395.52,0.00014999,2]
[423709706,1780324247000,-300.0,0.00014999,2]
[423709695,1780324247000,-500.0,0.00014999,2]
[423709701,1780324247000,-2395.52,0.00014999,2]
[423709704,1780324247000,-300.0,0.00014999,2]
[423709699,1780324247000,-2395.52,0.00014999,2]
[423709696,1780324247000,-2395.52,0.00014999,2]
[423709693,1780324247000,-500.0,0.00014999,2]
[423709689,1780324247000,-500.0,0.00014999,2]
[423709688,1780324247000,-500.0,0.00014999,2]
[423709686,1780324247000,-500.0,0.00014999,2]
[423709692,1780324247000,-500.0,0.00014999,2]
[423709690,1780324247000,-500.0,0.00014999,2]
[423709685,1780324247000,-500.0,0.00014999,2]
[423709691,1780324247000,-500.0,0.00014999,2]
[423709687,1780324247000,-273.16118467,0.00014999,2]
[423709703,1780324247000,-2395.52,0.00014999,2]
[423709694,1780324247000,-500.0,0.00014999,2]
[423709707,1780324247000,-314.99174282,0.00014999,2]
[423709697,1780324247000,-2395.52,0.00014999,2]
[423709711,1780324247000,-1722405.50959245,0.00015,2]
[423709727,1780324247000,-618.51915189,0.00015,2]
[423709729,1780324247000,-586.32426985,0.00015,2]
[423709728,1780324247000,-405.28705655,0.00015,2]
[423709726,1780324247000,-308307.23192077,0.00015,2]
[423709724,1780324247000,-562.50192848,0.00015,2]
[423709725,1780324247000,-1269.4914707,0.00015,2]
[423709721,1780324247000,-54952.95731662,0.00015,2]
[423709723,1780324247000,-3676.20633565,0.00015,2]
[423709722,1780324247000,-500.0,0.00014867,2]
[423709720,1780324247000,-1306.37736143,0.00015,2]
[423709719,1780324247000,-993.46255852,0.00015,2]
[423709718,1780324247000,-1540.37451112,0.00015,2]
[423709730,1780324247000,-172930.655592,0.00015,2]
[423709716,1780324247000,-608.28584954,0.00015,2]
[423709717,1780324247000,-500.0,0.00014867,2]
[423709713,1780324247000,-500.0,0.00014867,2]
[423709715,1780324247000,-591.57,0.00015,2]
[423709714,1780324247000,-16565.64653885,0.00015,2]
[423709709,1780324247000,-964.51664297,0.00015,7]
[423709712,1780324247000,-1790.85,0.00015,2]
[423709710,1780324247000,-1018.0,0.00015,2]
[423709708,1780324247000,-1789377.70328608,0.00015,2]
[423709737,1780324248000,-335957.73149616,0.00015,2]